[Event "Pervenstvo PFO 2023_Y19_Rapid"]
[Site "Samara region, Russia"]
[Date "2023.11.11"]
[Round "5.7"]
[White "Gimazetdinov, Amir"]
[Black "Siyalov, Mikhail"]
[Result "1/2-1/2"]
[TimeControl "10:5"]
[WhiteFideId "54142440"]
[BlackFideId "24276359"]
[WhiteElo "1749"]
[BlackElo "1691"]

1. Nf3 {[%clk 00:10:07]} {[%emt 00:00:03]} Nf6 {[%clk 00:10:09]} {[%emt
00:00:01]} 2. c4 {[%clk 00:10:11]} {[%emt 00:00:02]} g6 {[%clk 00:10:13]} 3. e3
{[%clk 00:10:15]} {[%emt 00:00:01]} Bg7 {[%clk 00:10:17]} 4. Nc3 {[%clk
00:10:19]} {[%emt 00:00:01]} O-O {[%clk 00:10:20]} {[%emt 00:00:02]} 5. b3
{[%clk 00:10:23]} {[%emt 00:00:02]} d6 {[%clk 00:10:24]} {[%emt 00:00:01]} 6.
Bb2 {[%clk 00:10:27]} e5 {[%clk 00:10:28]} 7. d3 {[%clk 00:10:28]} {[%emt
00:00:04]} Nc6 {[%clk 00:10:31]} {[%emt 00:00:02]} 8. Be2 {[%clk 00:10:32]} Bf5
{[%clk 00:10:16]} {[%emt 00:00:20]} 9. O-O {[%clk 00:10:32]} {[%emt 00:00:04]}
e4 {[%clk 00:10:11]} {[%emt 00:00:10]} 10. dxe4 {[%clk 00:10:30]} {[%emt
00:00:07]} Nxe4 {[%clk 00:10:13]} {[%emt 00:00:03]} 11. Nd4 {[%clk 00:10:34]}
Nxd4 {[%clk 00:09:54]} {[%emt 00:00:24]} 12. exd4 {[%clk 00:10:38]} {[%emt
00:00:01]} Nxc3 {[%clk 00:09:57]} {[%emt 00:00:02]} 13. Bxc3 {[%clk 00:10:42]}
{[%emt 00:00:02]} d5 {[%clk 00:09:54]} {[%emt 00:00:08]} 14. Bf3 {[%clk
00:10:45]} {[%emt 00:00:02]} Be6 {[%clk 00:09:52]} {[%emt 00:00:06]} 15. Qd3
{[%clk 00:10:29]} {[%emt 00:00:21]} c6 {[%clk 00:09:54]} {[%emt 00:00:04]} 16.
Rfe1 {[%clk 00:10:22]} {[%emt 00:00:12]} Qd7 {[%clk 00:09:53]} {[%emt
00:00:05]} 17. Rad1 {[%clk 00:10:17]} {[%emt 00:00:09]} Rfe8 {[%clk 00:09:56]}
{[%emt 00:00:03]} 18. c5 {[%clk 00:10:02]} {[%emt 00:00:20]} Bf5 {[%clk
00:09:48]} {[%emt 00:00:14]} 19. Qd2 {[%clk 00:10:06]} {[%emt 00:00:01]} h5
{[%clk 00:09:47]} {[%emt 00:00:06]} 20. Qf4 {[%clk 00:10:01]} {[%emt 00:00:09]}
Kh7 {[%clk 00:09:44]} {[%emt 00:00:09]} 21. Bd2 {[%clk 00:10:04]} {[%emt
00:00:02]} Rxe1+ {[%clk 00:07:58]} {[%emt 00:01:51]} 22. Rxe1 {[%clk 00:10:07]}
{[%emt 00:00:02]} Re8 {[%clk 00:08:01]} 23. Rxe8 {[%clk 00:10:01]} {[%emt
00:00:11]} Qxe8 {[%clk 00:08:05]} 24. h3 {[%clk 00:10:05]} {[%emt 00:00:02]}
Qe6 {[%clk 00:07:33]} {[%emt 00:00:37]} 25. Be3 {[%clk 00:09:37]} {[%emt
00:00:33]} Be4 {[%clk 00:06:55]} {[%emt 00:00:43]} 26. Bxe4 {[%clk 00:09:29]}
{[%emt 00:00:13]} dxe4 {[%clk 00:06:06]} {[%emt 00:00:53]} 27. Qc7 {[%clk
00:09:33]} {[%emt 00:00:02]} f5 {[%clk 00:05:40]} {[%emt 00:00:31]} 28. Qxb7
{[%clk 00:09:17]} {[%emt 00:00:20]} a5 {[%clk 00:05:18]} {[%emt 00:00:28]} 29.
a3 {[%clk 00:08:34]} {[%emt 00:00:48]} Qf6 {[%clk 00:04:49]} {[%emt 00:00:33]}
30. Qc7 {[%clk 00:07:37]} {[%emt 00:01:03]} g5 {[%clk 00:04:38]} {[%emt
00:00:15]} 31. Qd6 {[%clk 00:07:41]} f4 {[%clk 00:04:42]} {[%emt 00:00:02]} 32.
Qxf6 {[%clk 00:07:11]} {[%emt 00:00:34]} Bxf6 {[%clk 00:04:46]} {[%emt
00:00:02]} 33. Bd2 {[%clk 00:07:15]} a4 {[%clk 00:04:26]} {[%emt 00:00:26]} 34.
bxa4 {[%clk 00:07:19]} {[%emt 00:00:01]} Bxd4 {[%clk 00:04:29]} {[%emt
00:00:02]} 35. Bb4 {[%clk 00:07:23]} Be5 {[%clk 00:03:53]} {[%emt 00:00:41]} 36.
a5 {[%clk 00:07:26]} {[%emt 00:00:02]} Bb8 {[%clk 00:03:53]} {[%emt 00:00:06]}
37. a6 {[%clk 00:07:29]} {[%emt 00:00:02]} Ba7 {[%clk 00:03:57]} 38. Kf1 {[%clk
00:07:33]} Kg6 {[%clk 00:04:00]} {[%emt 00:00:03]} 39. Ke2 {[%clk 00:07:37]}
Kf5 {[%clk 00:04:04]} {[%emt 00:00:01]} 40. f3 {[%clk 00:07:31]} {[%emt
00:00:11]} g4 {[%clk 00:03:53]} {[%emt 00:00:16]} 41. hxg4+ {[%clk 00:07:07]}
{[%emt 00:00:29]} hxg4 {[%clk 00:03:56]} {[%emt 00:00:02]} 42. a4 {[%clk
00:07:05]} {[%emt 00:00:07]} gxf3+ {[%clk 00:03:43]} {[%emt 00:00:18]} 43. gxf3
{[%clk 00:07:09]} Ke5 {[%clk 00:03:47]} 44. fxe4 {[%clk 00:06:23]} {[%emt
00:00:51]} Kxe4 {[%clk 00:03:51]} 45. Kf2 {[%clk 00:06:27]} {[%emt 00:00:01]}
Kd4 {[%clk 00:03:45]} {[%emt 00:00:10]} 46. Kf3 {[%clk 00:06:30]} {[%emt
00:00:03]} Kc4 {[%clk 00:03:49]} 47. Be1 {[%clk 00:06:34]} Kb3 {[%clk
00:03:50]} {[%emt 00:00:04]} 48. a5 {[%clk 00:06:14]} {[%emt 00:00:24]} Ka4
{[%clk 00:03:53]} {[%emt 00:00:02]} 49. Kxf4 {[%clk 00:06:13]} {[%emt
00:00:06]} Kb5 {[%clk 00:03:53]} {[%emt 00:00:05]} 50. Ke5 {[%clk 00:06:15]}
{[%emt 00:00:02]} Bxc5 {[%clk 00:03:50]} {[%emt 00:00:08]} 51. Kd4 {[%emt
00:00:06]} 1/2-1/2

[Event "Pervenstvo PFO 2023_Y19_Rapid"]
[Site "Samara region, Russia"]
[Date "2023.11.11"]
[Round "5.8"]
[White "Pukhov, Ivan"]
[Black "Rekonchishek, Egor"]
[Result "1/2-1/2"]
[TimeControl "10:5"]
[WhiteFideId "34301895"]
[BlackFideId "34221476"]
[WhiteElo "1955"]
[BlackElo "1569"]

1. d4 {[%emt 00:02:58]} d5 {[%emt 00:00:02]} 2. c4 {[%emt 00:00:01]} c6 3. Nf3
{[%emt 00:00:01]} Nf6 4. g3 {[%emt 00:00:01]} a6 {[%emt 00:00:01]} 5. Bg2
{[%emt 00:00:07]} Bf5 6. O-O {[%emt 00:00:17]} e6 {[%emt 00:00:08]} 7. Qb3
{[%emt 00:00:03]} Ra7 {[%emt 00:00:01]} 8. Bf4 {[%emt 00:00:54]} Nbd7 {[%emt
00:00:08]} 9. cxd5 {[%emt 00:01:30]} exd5 {[%emt 00:00:03]} 10. Ne5 {[%emt
00:00:58]} Nxe5 {[%emt 00:00:24]} 11. Bxe5 {[%emt 00:00:17]} Be7 {[%emt
00:00:07]} 12. Nc3 {[%emt 00:00:21]} O-O {[%emt 00:00:06]} 13. Bxf6 {[%emt
00:00:32]} Bxf6 {[%emt 00:00:02]} 14. e3 h6 {[%emt 00:00:45]} 15. Na4 {[%emt
00:00:38]} Re8 {[%emt 00:02:22]} 16. Nc5 {[%emt 00:00:10]} Qc8 {[%emt
00:00:07]} 17. Rfc1 {[%emt 00:00:17]} Be7 {[%emt 00:00:47]} 18. Qd1 {[%emt
00:00:52]} Bxc5 {[%emt 00:00:09]} 19. Rxc5 {[%emt 00:00:02]} Be4 {[%emt
00:00:01]} 20. f3 {[%emt 00:01:41]} Bf5 {[%emt 00:01:09]} 21. g4 {[%emt
00:00:09]} Bg6 22. Qd2 {[%emt 00:00:15]} Qd8 {[%emt 00:00:18]} 23. h3 {[%emt
00:00:17]} Qb6 {[%emt 00:00:17]} 24. b4 {[%emt 00:01:03]} Rea8 {[%emt
00:00:32]} 25. a4 {[%emt 00:00:06]} Re8 {[%emt 00:00:20]} 26. Rac1 {[%emt
00:00:03]} Qd8 {[%emt 00:00:17]} 27. Qf2 {[%emt 00:00:12]} Qe7 {[%emt
00:00:14]} 28. e4 {[%emt 00:00:21]} Raa8 {[%emt 00:01:10]} 29. e5 {[%emt
00:00:16]} b6 {[%emt 00:00:50]} 30. Rxc6 {[%emt 00:00:10]} Qxb4 {[%emt
00:00:01]} 31. f4 {[%emt 00:00:32]} Be4 {[%emt 00:00:01]} 32. Bxe4 {[%emt
00:00:06]} dxe4 {[%emt 00:00:01]} 33. d5 Qxa4 {[%emt 00:00:24]} 34. d6 {[%emt
00:00:09]} Qa3 {[%emt 00:01:05]} 35. R6c3 {[%emt 00:00:09]} Qb4 {[%emt
00:00:10]} 36. d7 {[%emt 00:00:17]} Red8 37. Rc8 {[%emt 00:00:02]} Qa3 {[%emt
00:00:36]} 38. Rxd8+ {[%emt 00:00:13]} Rxd8 39. Rc8 Qf8 {[%emt 00:00:27]} 40.
Rxd8 Qxd8 41. Qd4 {[%emt 00:00:02]} Kh7 {[%emt 00:00:08]} 42. Qxe4+ g6 43. Qd5
{[%emt 00:00:01]} Kg7 {[%emt 00:00:05]} 44. Qc6 {[%emt 00:00:10]} Kh7 {[%emt
00:00:08]} 45. Qc8 {[%emt 00:00:09]} Qh4 46. d8=Q {[%emt 00:00:02]} Qe1+ {[%emt
00:00:07]} 47. Kg2 {[%emt 00:00:06]} Qe2+ 48. Kg3 {[%emt 00:00:07]} Qe3+ {[%emt
00:00:01]} 1/2-1/2

[Event "Pervenstvo PFO 2023_Y19_Rapid"]
[Site "Samara region, Russia"]
[Date "2023.11.11"]
[Round "5.9"]
[White "Nasyrov, Danil R."]
[Black "Evtukhov, Lev"]
[Result "1/2-1/2"]
[TimeControl "10:5"]
[WhiteFideId "34290257"]
[BlackFideId "44173210"]
[WhiteElo "1234"]
[BlackElo "1923"]

1. d4 {[%clk 00:10:07]} {[%emt 00:00:02]} d5 {[%clk 00:10:09]} 2. Nf3 {[%clk
00:10:09]} {[%emt 00:00:03]} Nf6 {[%clk 00:10:13]} {[%emt 00:00:02]} 3. Bf4
{[%clk 00:10:08]} {[%emt 00:00:06]} e6 {[%clk 00:10:13]} {[%emt 00:00:05]} 4.
e3 {[%clk 00:10:11]} {[%emt 00:00:02]} Bd6 {[%clk 00:10:16]} {[%emt 00:00:02]}
5. Bg3 {[%clk 00:10:14]} {[%emt 00:00:02]} O-O {[%clk 00:10:17]} {[%emt
00:00:03]} 6. c3 {[%clk 00:10:17]} {[%emt 00:00:02]} c5 {[%clk 00:10:20]}
{[%emt 00:00:03]} 7. Bd3 {[%clk 00:10:21]} {[%emt 00:00:02]} Nc6 {[%clk
00:10:17]} {[%emt 00:00:07]} 8. Nbd2 {[%clk 00:10:24]} {[%emt 00:00:02]} h6
{[%clk 00:10:12]} {[%emt 00:00:10]} 9. Ne5 {[%clk 00:10:27]} {[%emt 00:00:02]}
Bxe5 {[%clk 00:09:56]} {[%emt 00:00:21]} 10. dxe5 {[%clk 00:10:30]} {[%emt
00:00:02]} Nd7 {[%clk 00:09:59]} 11. f4 {[%clk 00:10:25]} {[%emt 00:00:10]} f6
{[%clk 00:09:24]} {[%emt 00:00:40]} 12. Qh5 {[%clk 00:09:06]} {[%emt 00:01:24]}
fxe5 {[%clk 00:08:21]} {[%emt 00:01:09]} 13. fxe5 {[%clk 00:09:01]} {[%emt
00:00:08]} Qg5 {[%clk 00:08:23]} {[%emt 00:00:03]} 14. Qxg5 {[%clk 00:08:57]}
{[%emt 00:00:10]} hxg5 {[%clk 00:08:26]} {[%emt 00:00:02]} 15. Bb5 {[%clk
00:08:06]} {[%emt 00:00:56]} Ncxe5 {[%clk 00:07:57]} {[%emt 00:00:34]} 16. Bxd7
{[%clk 00:08:07]} {[%emt 00:00:03]} Nxd7 {[%clk 00:08:01]} {[%emt 00:00:02]} 17.
O-O-O {[%clk 00:07:47]} {[%emt 00:00:25]} b6 {[%clk 00:08:02]} {[%emt
00:00:03]} 18. Nf3 {[%clk 00:07:43]} {[%emt 00:00:08]} g4 {[%clk 00:08:00]}
{[%emt 00:00:07]} 19. Ne5 {[%clk 00:07:46]} {[%emt 00:00:03]} Nxe5 {[%clk
00:07:53]} {[%emt 00:00:12]} 20. Bxe5 {[%clk 00:07:48]} {[%emt 00:00:03]} Rf5
{[%clk 00:07:07]} {[%emt 00:00:50]} 21. Bg3 {[%clk 00:07:40]} {[%emt 00:00:13]}
Ba6 {[%clk 00:07:02]} {[%emt 00:00:11]} 22. Rhe1 {[%clk 00:07:25]} {[%emt
00:00:19]} Bb7 {[%clk 00:06:38]} {[%emt 00:00:30]} 23. e4 {[%clk 00:06:39]}
{[%emt 00:00:52]} dxe4 {[%clk 00:06:28]} {[%emt 00:00:14]} 24. Rd7 {[%clk
00:06:42]} {[%emt 00:00:02]} Bd5 {[%clk 00:06:31]} {[%emt 00:00:02]} 25. c4
{[%clk 00:06:40]} {[%emt 00:00:07]} Bxc4 {[%clk 00:05:54]} {[%emt 00:00:42]} 26.
Rxe4 {[%clk 00:06:44]} {[%emt 00:00:02]} Bd5 {[%clk 00:05:23]} {[%emt
00:00:35]} 27. Rxg4 {[%clk 00:06:29]} {[%emt 00:00:20]} Rf7 {[%clk 00:05:27]}
{[%emt 00:00:01]} 28. Rxf7 {[%clk 00:04:43]} {[%emt 00:01:51]} Kxf7 {[%clk
00:05:31]} {[%emt 00:00:01]} 29. Be5 {[%clk 00:04:46]} {[%emt 00:00:02]} Rg8
{[%clk 00:05:10]} {[%emt 00:00:25]} 30. Ra4 {[%clk 00:04:35]} {[%emt 00:00:17]}
Bxg2 {[%clk 00:01:53]} {[%emt 00:03:22]} 31. Rxa7+ {[%clk 00:04:34]} {[%emt
00:00:06]} Kg6 {[%clk 00:01:57]} {[%emt 00:00:01]} 32. Ra6 {[%clk 00:04:31]}
{[%emt 00:00:08]} Kf5 {[%clk 00:01:58]} {[%emt 00:00:04]} 33. Bg3 {[%clk
00:04:28]} {[%emt 00:00:08]} b5 {[%clk 00:02:01]} {[%emt 00:00:02]} 34. Ra5
{[%clk 00:03:13]} {[%emt 00:01:20]} Bf1 {[%clk 00:02:03]} {[%emt 00:00:03]}
1/2-1/2

[Event "Pervenstvo PFO 2023_Y19_Rapid"]
[Site "Samara region, Russia"]
[Date "2023.11.11"]
[Round "5.10"]
[White "Sadykov, Ilgiz A."]
[Black "Nigmadzyanov, Ruslan R."]
[Result "1-0"]
[TimeControl "10:5"]
[WhiteFideId "34286217"]
[BlackFideId "34224670"]
[WhiteElo "1675"]
[BlackElo "1542"]

1. d4 {[%clk 00:10:09]} {[%emt 00:00:01]} Nf6 {[%clk 00:10:09]} {[%emt
00:00:01]} 2. c4 {[%clk 00:10:12]} {[%emt 00:00:02]} g6 {[%clk 00:10:13]} 3.
Nc3 {[%clk 00:10:15]} {[%emt 00:00:03]} d5 {[%clk 00:10:17]} 4. cxd5 Nxd5 5. e4
{[%clk 00:10:17]} Nxc3 {[%clk 00:10:20]} {[%emt 00:00:02]} 6. bxc3 {[%clk
00:10:21]} Bg7 {[%clk 00:10:24]} {[%emt 00:00:02]} 7. Nf3 {[%clk 00:10:26]}
{[%emt 00:00:01]} c5 {[%clk 00:10:27]} {[%emt 00:00:01]} 8. Bb5+ {[%clk
00:10:29]} {[%emt 00:00:02]} Nc6 {[%clk 00:10:30]} 9. O-O {[%clk 00:10:32]}
{[%emt 00:00:03]} O-O {[%clk 00:10:25]} {[%emt 00:00:10]} 10. Bxc6 {[%clk
00:10:34]} {[%emt 00:00:04]} bxc6 {[%clk 00:10:29]} 11. Qc2 {[%clk 00:10:28]}
{[%emt 00:00:11]} cxd4 {[%clk 00:10:31]} {[%emt 00:00:02]} 12. cxd4 {[%clk
00:10:32]} {[%emt 00:00:01]} Bg4 {[%clk 00:10:35]} 13. Ne5 {[%clk 00:10:34]}
{[%emt 00:00:03]} Qxd4 {[%clk 00:10:36]} {[%emt 00:00:04]} 14. Bb2 {[%clk
00:10:38]} {[%emt 00:00:02]} Qb4 {[%clk 00:10:38]} 15. Rab1 {[%clk 00:10:39]}
{[%emt 00:00:05]} Bxe5 {[%clk 00:10:34]} {[%emt 00:00:09]} 16. Bxe5 {[%clk
00:10:43]} {[%emt 00:00:02]} Qa5 {[%clk 00:10:35]} {[%emt 00:00:01]} 17. Bc3
{[%clk 00:10:44]} {[%emt 00:00:06]} Qc5 {[%clk 00:10:39]} {[%emt 00:00:01]} 18.
h3 {[%clk 00:10:40]} {[%emt 00:00:09]} Be2 {[%clk 00:10:04]} {[%emt 00:00:41]}
19. Rfc1 {[%clk 00:10:43]} {[%emt 00:00:01]} Ba6 {[%clk 00:10:02]} {[%emt
00:00:07]} 20. Qd2 {[%clk 00:10:47]} {[%emt 00:00:02]} Qd6 {[%clk 00:09:58]}
{[%emt 00:00:08]} 21. Qh6 {[%clk 00:10:32]} {[%emt 00:00:18]} e5 {[%clk
00:10:01]} {[%emt 00:00:04]} 22. Bb4 {[%clk 00:10:28]} {[%emt 00:00:09]} Qe6
{[%clk 00:09:51]} {[%emt 00:00:15]} 23. Bxf8 {[%clk 00:10:24]} {[%emt
00:00:09]} Rxf8 {[%clk 00:09:55]} {[%emt 00:00:02]} 24. Qd2 {[%clk 00:10:23]}
{[%emt 00:00:04]} Bb5 {[%clk 00:09:32]} {[%emt 00:00:29]} 25. Rb2 {[%clk
00:10:02]} {[%emt 00:00:25]} Qe7 {[%clk 00:09:16]} {[%emt 00:00:22]} 26. Qa5
{[%clk 00:10:02]} {[%emt 00:00:06]} Qg5 {[%clk 00:08:45]} {[%emt 00:00:35]} 27.
Re1 {[%clk 00:09:42]} {[%emt 00:00:24]} a6 {[%clk 00:07:51]} {[%emt 00:01:00]}
28. a4 {[%clk 00:09:37]} {[%emt 00:00:09]} Bd3 {[%clk 00:07:54]} {[%emt
00:00:02]} 29. Qc3 {[%clk 00:09:20]} {[%emt 00:00:22]} Rd8 {[%clk 00:07:35]}
{[%emt 00:00:25]} 30. Rd2 {[%clk 00:09:20]} {[%emt 00:00:05]} Bxe4 {[%clk
00:06:54]} {[%emt 00:00:46]} 31. Rxd8+ {[%clk 00:09:18]} {[%emt 00:00:07]} Qxd8
{[%clk 00:06:57]} {[%emt 00:00:02]} 32. Rxe4 {[%clk 00:09:21]} {[%emt
00:00:03]} Qd1+ {[%clk 00:07:00]} 33. Re1 {[%clk 00:09:20]} {[%emt 00:00:05]}
Qxa4 {[%clk 00:07:03]} {[%emt 00:00:03]} 34. Rxe5 {[%clk 00:09:14]} {[%emt
00:00:11]} Qd1+ {[%clk 00:07:02]} {[%emt 00:00:06]} 35. Re1 {[%clk 00:09:17]}
{[%emt 00:00:03]} Qd7 {[%clk 00:07:03]} {[%emt 00:00:03]} 36. Qe5 {[%clk
00:09:12]} {[%emt 00:00:10]} Qd2 {[%clk 00:06:57]} {[%emt 00:00:11]} 37. Rb1
{[%clk 00:09:14]} {[%emt 00:00:03]} 1-0

[ePGN "0.1;DGT LiveChess/2.2.5"]

[Event "Pervenstvo PFO 2023_Y19_Rapid"]
[Site "Samara region, Russia"]
[Date "2023.11.11"]
[Round "6.1"]
[White "Azizyan, Levon"]
[Black "Lydin, Vladislav"]
[Result "0-1"]
[TimeControl "10:5"]
[WhiteFideId "44151888"]
[BlackFideId "44195990"]
[WhiteElo "1940"]
[BlackElo "2005"]

1. e4 {[%clk 00:10:08]} {[%emt 00:00:02]} Nf6 {[%clk 00:09:50]} {[%emt
00:00:21]} 2. e5 {[%clk 00:10:12]} {[%emt 00:00:01]} Nd5 {[%clk 00:09:54]} 3.
c4 {[%clk 00:10:16]} Nb6 {[%clk 00:09:59]} {[%emt 00:00:01]} 4. d4 {[%clk
00:10:20]} d6 {[%clk 00:10:03]} 5. f4 {[%clk 00:10:25]} dxe5 {[%clk 00:10:07]}
{[%emt 00:00:02]} 6. fxe5 {[%clk 00:10:28]} Bf5 {[%clk 00:10:11]} {[%emt
00:00:01]} 7. Nc3 {[%clk 00:10:31]} {[%emt 00:00:03]} e6 {[%clk 00:10:15]}
{[%emt 00:00:01]} 8. Be3 {[%clk 00:10:35]} Bb4 {[%clk 00:10:19]} {[%emt
00:00:01]} 9. Nf3 {[%clk 00:10:37]} {[%emt 00:00:03]} c5 {[%clk 00:10:12]}
{[%emt 00:00:12]} 10. a3 {[%clk 00:10:41]} {[%emt 00:00:01]} Bxc3+ {[%clk
00:10:06]} {[%emt 00:00:11]} 11. bxc3 {[%clk 00:10:45]} {[%emt 00:00:02]} O-O
{[%clk 00:09:52]} {[%emt 00:00:18]} 12. Bd3 {[%clk 00:10:29]} {[%emt 00:00:21]}
Bxd3 {[%clk 00:09:48]} {[%emt 00:00:08]} 13. Qxd3 {[%clk 00:10:32]} {[%emt
00:00:02]} Nc6 {[%clk 00:09:41]} {[%emt 00:00:13]} 14. Ng5 {[%clk 00:10:36]}
{[%emt 00:00:02]} g6 {[%clk 00:09:08]} {[%emt 00:00:38]} 15. Nf3 {[%clk
00:09:52]} {[%emt 00:00:49]} cxd4 {[%clk 00:08:18]} {[%emt 00:00:53]} 16. cxd4
{[%clk 00:09:41]} {[%emt 00:00:17]} Nd7 {[%clk 00:07:44]} {[%emt 00:00:39]} 17.
Rd1 {[%clk 00:08:59]} {[%emt 00:00:46]} Qa5+ {[%clk 00:07:08]} {[%emt
00:00:42]} 18. Bd2 {[%clk 00:08:51]} {[%emt 00:00:13]} Qb6 {[%clk 00:07:12]} 19.
c5 {[%clk 00:08:09]} {[%emt 00:00:47]} Qd8 {[%clk 00:07:13]} {[%emt 00:00:04]}
20. Bh6 {[%clk 00:07:49]} {[%emt 00:00:24]} Qa5+ {[%clk 00:06:56]} {[%emt
00:00:23]} 21. Bd2 {[%clk 00:07:25]} {[%emt 00:00:30]} Qd8 {[%clk 00:06:59]} 22.
Qe4 {[%clk 00:07:15]} {[%emt 00:00:15]} f6 {[%clk 00:06:04]} {[%emt 00:01:01]}
23. exf6 {[%clk 00:06:54]} {[%emt 00:00:25]} Nxf6 {[%clk 00:05:37]} {[%emt
00:00:32]} 24. Qh4 {[%clk 00:03:40]} {[%emt 00:03:19]} Nd5 {[%clk 00:05:24]}
{[%emt 00:00:18]} 25. Qh6 {[%clk 00:03:13]} {[%emt 00:00:31]} Rf5 {[%clk
00:04:59]} {[%emt 00:00:31]} 26. Qh3 {[%clk 00:02:27]} {[%emt 00:00:51]} Qf6
{[%clk 00:03:57]} {[%emt 00:01:08]} 27. Bh6 {[%clk 00:00:55]} {[%emt 00:01:34]}
Rh5 {[%clk 00:03:41]} {[%emt 00:00:23]} 28. Bg5 {[%clk 00:00:44]} {[%emt
00:00:15]} Rxh3 {[%clk 00:03:26]} {[%emt 00:00:20]} 29. Bxf6 {[%clk 00:00:48]}
{[%emt 00:00:02]} Rxf3 {[%clk 00:03:30]} {[%emt 00:00:01]} 30. gxf3 {[%clk
00:00:51]} {[%emt 00:00:02]} Nxf6 {[%clk 00:03:33]} {[%emt 00:00:01]} 31. Kf2
{[%clk 00:00:39]} {[%emt 00:00:17]} Rd8 {[%clk 00:03:37]} {[%emt 00:00:02]} 32.
Rb1 {[%clk 00:00:38]} {[%emt 00:00:07]} Rd7 {[%clk 00:03:40]} {[%emt 00:00:01]}
33. Rhd1 {[%clk 00:00:27]} {[%emt 00:00:16]} Nxd4 {[%clk 00:03:23]} {[%emt
00:00:22]} 34. Rb4 {[%clk 00:00:31]} e5 {[%clk 00:03:17]} {[%emt 00:00:10]} 35.
f4 {[%clk 00:00:34]} {[%emt 00:00:03]} Nd5 {[%clk 00:03:13]} {[%emt 00:00:09]}
36. fxe5 {[%clk 00:00:09]} {[%emt 00:00:30]} Nxb4 {[%clk 00:03:17]} {[%emt
00:00:01]} 37. axb4 {[%clk 00:00:14]} Rd8 {[%clk 00:03:19]} {[%emt 00:00:03]}
38. Ra1 {[%clk 00:00:16]} {[%emt 00:00:03]} a6 {[%clk 00:03:22]} {[%emt
00:00:02]} 39. Rd1 {[%clk 00:00:18]} {[%emt 00:00:03]} Nc6 {[%clk 00:03:24]}
{[%emt 00:00:02]} 40. Rd6 {[%clk 00:00:17]} {[%emt 00:00:06]} Rxd6 {[%clk
00:03:24]} {[%emt 00:00:05]} 41. cxd6 {[%clk 00:00:17]} {[%emt 00:00:04]} Nxe5
{[%clk 00:03:27]} {[%emt 00:00:02]} 0-1